bitfinex-derivatives/quotes_BNBF0:USTF0_20250710
["timestamp","ask_amount","ask_price","bid_price","bid_amount"]
[1752188939736,1.30453401,687.67,686.99,0.97435896]
[1752188939939,1.30453401,687.67,687.0,0.97435896]
[1752188940138,1.30453401,687.67,687.01,0.97435896]
[1752188940345,1.30453401,687.67,687.02,0.97435896]
[1752188940542,1.30453401,687.67,687.03,0.97435896]
[1752188940739,1.30453401,687.67,687.04,0.97435896]
[1752188940957,1.30453401,687.67,687.05,0.97435896]
[1752188941144,1.30453401,687.67,687.06,0.97435896]
[1752188941341,1.30453401,687.67,686.84,1.205]
[1752188941342,1.30453401,687.67,687.07,0.97435896]
[1752188941644,1.30453401,687.73,687.08,0.97435896]
[1752188941844,1.30453401,687.73,687.09,0.97435896]
[1752188942045,1.30453401,687.73,687.1,0.97435896]
[1752188942341,1.30453401,687.73,687.11,0.97435896]
[1752188942645,1.30453401,687.73,687.12,0.97435896]
[1752188942846,1.30453401,687.73,687.13,0.97435896]
[1752188943144,1.30453401,687.74,687.14,0.97435896]
[1752188943441,1.30453401,687.74,687.15,0.97435896]
[1752188943643,1.30453401,687.73,687.16,0.97435896]
[1752188943846,1.30453401,687.73,686.84,1.205]
[1752188944149,1.30453401,687.68,686.85,0.97396857]
[1752188944345,1.30453401,687.66,686.86,0.97396857]
[1752188944544,1.30453401,687.66,686.87,0.97396857]
[1752188944744,1.30453401,687.66,686.84,1.205]
[1752188944745,1.30453401,687.57,686.88,0.97396857]
[1752188945056,1.30453401,687.57,686.89,0.97396857]
[1752188945344,1.30453401,687.57,686.9,0.97396857]
[1752188945543,1.30453401,687.57,686.91,0.97396857]
[1752188945748,1.30453401,687.57,686.92,0.97396857]
[1752188945949,1.30453401,687.57,686.93,0.97396857]
[1752188946145,1.30453401,687.57,686.94,0.97396857]
[1752188946349,1.30453401,687.58,686.95,0.97396857]
[1752188946549,1.30453401,687.59,686.96,0.97396857]
[1752188946746,1.30453401,687.59,686.97,0.97396857]
[1752188946952,1.30453401,687.59,686.98,0.97396857]
[1752188947249,1.30453401,687.59,686.99,0.97396857]
[1752188947448,1.30453401,687.59,687.0,0.97396857]
[1752188947752,1.30453401,687.59,687.01,0.97396857]
[1752188947948,1.30453401,687.59,687.02,0.97396857]
[1752188948152,1.30453401,687.59,687.03,0.97396857]
[1752188948350,1.30453401,687.59,686.84,1.205]
[1752188948656,1.30453401,687.59,686.85,0.97370963]
[1752188948954,0.25316824,687.77,686.84,1.205]
[1752188948955,1.30453401,687.61,686.86,0.97370963]
[1752188949169,1.30453401,687.52,686.87,0.97370963]
[1752188949355,1.30453401,687.53,686.88,0.97370963]
[1752188949556,1.30453401,687.52,686.89,0.97370963]
[1752188949756,1.30453401,687.52,686.9,0.97370963]
[1752188949952,1.30453401,687.52,686.91,0.97370963]
[1752188950156,1.30453401,687.52,686.92,0.97370963]
[1752188950356,1.30453401,687.53,686.93,0.97370963]
[1752188950652,1.30453401,687.53,686.94,0.97370963]
[1752188950859,1.30453401,687.53,686.95,0.97370963]
[1752188951060,1.30453401,687.51,686.96,0.97370963]
[1752188951259,1.30453401,687.52,686.97,0.97370963]
[1752188951560,1.30453401,687.52,686.98,0.97370963]
[1752188951755,1.30453401,687.52,686.84,1.205]
[1752188951957,1.30453401,687.52,686.85,0.97248582]
[1752188952161,1.30453401,687.52,686.86,0.97248582]
[1752188952357,1.30453401,687.52,686.84,1.205]
[1752188952358,1.30453401,687.52,686.87,0.97248582]
[1752188952557,1.30453401,687.52,686.88,0.97248582]
[1752188952756,1.30453401,687.52,686.89,0.97248582]
[1752188952957,1.30453401,687.52,686.9,0.97248582]
[1752188953161,1.30453401,687.52,686.91,0.97248582]
[1752188953461,1.30453401,687.52,686.92,0.97248582]
[1752188953660,1.30453401,687.52,686.93,0.97248582]
[1752188953860,1.30453401,687.51,686.94,0.97248582]
[1752188954160,1.30453401,687.52,686.95,0.97248582]
[1752188954357,1.30453401,687.52,686.96,0.97248582]
[1752188954657,1.30453401,687.52,686.97,0.97248582]
[1752188954861,1.30453401,687.52,686.84,1.205]
[1752188955063,1.30453401,687.52,686.85,0.97089079]
[1752188955261,1.30453401,687.53,686.86,0.97089079]
[1752188955462,1.30453401,687.53,686.87,0.97089079]
[1752188955666,1.30453401,687.53,686.88,0.97089079]
[1752188955864,1.30453401,687.53,686.89,0.97089079]
[1752188956064,1.30453401,687.53,686.9,0.97089079]
[1752188956264,1.30453401,687.52,686.91,0.97089079]
[1752188956464,1.30453401,687.52,686.92,0.97089079]
[1752188956764,1.30453401,687.52,686.93,0.97089079]
[1752188956963,1.30453401,687.52,686.94,0.97089079]
[1752188957169,1.30453401,687.52,686.95,0.97089079]
[1752188957385,1.30453401,687.52,686.96,0.97089079]
[1752188957565,1.30453401,687.52,686.84,1.205]
[1752188957767,1.30453401,687.52,686.85,0.97039413]
[1752188958067,1.30453401,687.52,686.86,0.97039413]
[1752188958265,1.30453401,687.52,686.84,1.205]
[1752188958266,1.30453401,687.53,686.87,0.97039413]
[1752188958465,1.30453401,687.53,686.88,0.97039413]
[1752188958760,1.30453401,687.53,686.89,0.97039413]
[1752188958965,1.30453401,687.48,686.9,0.97039413]
[1752188959164,1.30453401,687.5,686.91,0.97039413]
[1752188959365,1.30453401,687.51,686.92,0.97039413]
[1752188959563,1.30453401,687.51,686.93,0.97039413]
[1752188959864,1.30453401,687.51,686.94,0.97039413]
[1752188960062,1.30453401,687.51,686.95,0.97039413]
[1752188960267,1.30453401,687.51,686.96,0.97039413]
[1752188960468,1.30453401,687.51,686.62,0.97876534]
[1752188960768,1.30453401,687.51,686.63,0.97048753]
[1752188960964,1.30453401,687.51,686.64,0.97048753]
[1752188961170,1.30453401,687.51,686.65,0.97048753]
[1752188961370,1.30453401,687.51,686.66,0.97048753]
[1752188961571,1.30453401,687.51,686.67,0.97048753]
[1752188961873,1.30453401,687.52,686.68,0.97048753]
[1752188962071,1.30453401,687.52,686.69,0.97048753]
[1752188962268,1.30453401,687.52,686.7,0.97048753]
[1752188962568,1.30453401,687.52,686.71,0.97048753]
[1752188962766,1.30453401,687.52,686.72,0.97048753]
[1752188962972,1.30453401,687.54,686.73,0.97048753]
[1752188963171,1.30453401,687.54,686.74,0.97048753]
[1752188963367,1.30453401,687.54,686.75,0.97048753]
[1752188963667,1.30453401,687.54,686.76,0.97048753]
[1752188963872,1.30453401,687.54,686.77,0.97048753]
[1752188964172,1.30453401,687.55,686.78,0.97048753]
[1752188964368,1.30453401,687.55,686.79,0.97048753]
[1752188964569,1.30453401,687.55,686.8,0.97048753]
[1752188964773,1.30453401,687.55,686.61,0.97876534]
[1752188964774,1.30453401,687.55,686.81,0.97048753]
[1752188964973,1.30453401,687.55,686.82,0.97048753]
[1752188965273,1.30453401,687.55,686.83,0.97048753]
[1752188965570,1.30453401,687.55,686.84,0.97048753]
[1752188965777,1.30453401,687.55,686.85,0.97048753]
[1752188966073,1.30453401,687.55,686.86,0.97048753]
[1752188966270,1.30453401,687.55,686.87,0.97048753]
[1752188966469,1.30453401,687.55,686.61,0.97876534]
[1752188966470,1.30453401,687.55,686.88,0.97048753]
[1752188966675,1.30453401,687.55,686.89,0.97048753]
[1752188966874,1.30453401,687.54,686.9,0.97048753]
[1752188967074,1.30453401,687.54,686.91,0.97048753]
[1752188967274,1.30453401,687.54,686.92,0.97048753]
[1752188967473,1.30453401,687.54,686.93,0.97048753]
[1752188967671,1.30453401,687.54,686.94,0.97048753]
[1752188967876,1.30453401,687.54,686.95,0.97048753]
[1752188968074,1.30453401,687.54,686.96,0.97048753]
[1752188968376,1.30453401,687.54,686.62,0.97876534]
[1752188968575,1.30453401,687.54,686.63,0.97093517]
[1752188968774,1.30453401,687.54,686.64,0.97093517]
[1752188968979,0.25316824,687.77,686.62,0.97876534]
[1752188968980,1.30453401,687.52,686.65,0.97093517]
[1752188969176,1.30453401,687.53,686.66,0.97093517]
[1752188969378,1.30453401,687.53,686.67,0.97093517]
[1752188969582,1.30453401,687.53,686.68,0.97093517]
[1752188969881,1.30453401,687.53,686.69,0.97093517]
[1752188970078,1.30453401,687.54,686.7,0.97093517]
[1752188970278,1.30453401,687.55,686.71,0.97093517]
[1752188970480,1.30453401,687.55,686.72,0.97093517]
[1752188970776,1.30453401,687.55,686.73,0.97093517]
[1752188970976,1.30453401,687.55,686.61,0.97876534]
[1752188970977,1.30453401,687.55,686.74,0.97092503]
[1752188971179,1.30453401,687.55,686.75,0.97092503]
[1752188971380,1.30453401,687.55,686.76,0.97092503]
[1752188971679,1.30453401,687.55,686.77,0.97092503]
[1752188971877,1.30453401,687.55,686.78,0.97092503]
[1752188972079,1.30453401,687.55,686.79,0.97092503]
[1752188972275,1.30453401,687.74,686.8,0.97092503]
[1752188972480,0.25316824,687.77,686.81,0.97092503]
[1752188972678,0.25316824,687.77,686.82,0.97092503]
[1752188972880,0.25316824,687.77,686.83,0.97092503]
[1752188973081,0.25316824,687.77,686.84,0.97092503]
[1752188973283,0.25316824,687.77,686.85,0.97092503]
[1752188973589,0.25316824,687.77,686.86,0.97092503]
[1752188973879,0.25316824,687.77,686.87,0.97092503]
[1752188974080,0.25316824,687.77,686.88,0.97092503]
[1752188974277,0.25316824,687.77,686.89,0.97092503]
[1752188974581,0.25316824,687.77,686.9,0.97092503]
[1752188974777,0.25316824,687.77,686.72,0.97876534]
[1752188974983,0.25316824,687.77,686.73,0.97025842]
[1752188975285,0.25316824,687.77,686.74,0.97025842]
[1752188975478,0.25316824,687.77,686.75,0.97025842]
[1752188975680,0.25316824,687.77,686.76,0.97025842]
[1752188975884,0.25316824,687.77,686.77,0.97025842]
[1752188976082,0.25316824,687.77,686.78,0.97025842]
[1752188976279,0.25316824,687.77,686.79,0.97025842]
[1752188976481,0.25316824,687.77,686.8,0.97025842]
[1752188976679,0.25316824,687.77,686.81,0.97025842]
[1752188976981,0.25316824,687.77,686.82,0.97025842]
[1752188977182,0.25316824,687.77,686.83,0.97025842]
[1752188977380,0.25316824,687.77,686.84,0.97025842]
[1752188977681,0.25316824,687.77,686.85,0.97025842]
[1752188977886,0.25316824,687.77,686.86,0.97025842]
[1752188978086,0.25316824,687.77,686.87,0.97025842]
[1752188978281,0.25316824,687.77,686.88,0.97025842]
[1752188978581,0.25316824,687.77,686.89,0.97025842]
[1752188978781,0.25316824,687.77,686.9,0.97025842]
[1752188978984,0.25316824,687.77,686.91,0.97025842]
[1752188979183,0.25316824,687.77,686.92,0.97025842]
[1752188979386,0.25316824,687.77,686.93,0.97025842]
[1752188979686,0.25316824,687.77,686.94,0.97025842]
[1752188979892,0.25316824,687.77,686.95,0.97025842]
[1752188980087,0.25316824,687.77,686.96,0.97025842]
[1752188980283,0.25316824,687.77,686.97,0.97025842]
[1752188980581,0.25316824,687.77,686.98,0.97025842]
[1752188980781,0.25316824,687.77,686.99,0.97025842]
[1752188980980,0.25316824,687.77,687.0,0.97025842]
[1752188981182,0.25316824,687.77,687.01,0.97025842]
[1752188981485,0.25316824,687.77,687.02,0.97025842]
[1752188981686,0.25316824,687.77,687.03,0.97025842]
[1752188981886,0.25316824,687.77,687.04,0.97025842]
[1752188982088,0.25316824,687.77,687.05,0.97025842]
[1752188982285,0.25316824,687.77,687.06,0.97025842]
[1752188982485,0.25316824,687.77,687.07,0.97025842]
[1752188982687,0.25316824,687.77,687.08,0.97025842]
[1752188982886,0.25316824,687.77,687.09,0.97025842]
[1752188983186,0.25316824,687.77,687.1,0.97025842]
[1752188983389,0.25316824,687.77,687.11,0.97025842]
[1752188983689,0.25316824,687.77,687.12,0.97025842]
[1752188983891,0.25316824,687.77,687.13,0.97025842]
[1752188984088,0.25316824,687.77,687.14,0.97025842]
[1752188984288,0.25316824,687.77,687.15,0.97025842]
[1752188984488,0.25316824,687.77,687.16,0.97025842]
[1752188984689,0.25316824,687.77,687.17,0.97025842]
[1752188984990,0.25316824,687.77,687.18,0.97025842]
[1752188985189,0.25316824,687.77,687.19,0.97025842]
[1752188985394,0.25316824,687.77,686.78,0.97876534]
[1752188985689,0.25316824,687.77,685.7,0.25312681]
[1752188985690,0.25316824,687.77,686.82,0.97876534]
[1752188985988,0.25316824,687.77,686.83,0.97049618]
[1752188986192,0.25316824,687.77,686.84,0.97049618]
[1752188986389,0.25316824,687.77,686.85,0.97049618]
[1752188986591,0.25316824,687.77,686.86,0.97049618]
[1752188986789,0.25316824,687.77,686.87,0.97049618]
[1752188986988,0.25316824,687.77,686.88,0.97049618]
[1752188987289,0.25316824,687.77,686.89,0.97049618]
[1752188987493,0.25316824,687.77,686.9,0.97049618]
[1752188987693,0.25316824,687.77,686.91,0.97049618]
[1752188987993,0.25316824,687.77,686.92,0.97049618]
[1752188988189,0.25316824,687.77,686.93,0.97049618]
[1752188988489,0.25316824,687.77,686.94,0.97049618]
[1752188988692,0.25316824,687.77,686.95,0.97049618]
[1752188988994,0.25316824,687.77,686.96,0.97049618]
[1752188989191,0.25316824,687.77,686.97,0.97049618]
[1752188989494,0.25316824,687.77,686.98,0.97049618]
[1752188989794,0.25316824,687.77,686.99,0.97049618]
[1752188989990,0.25316824,687.77,687.0,0.97049618]
[1752188990293,0.25316824,687.77,687.01,0.97049618]
[1752188990490,0.25316824,687.77,687.02,0.97049618]
[1752188990691,0.25316824,687.77,687.03,0.97049618]
[1752188990895,0.25316824,687.77,687.04,0.97049618]
[1752188991095,0.25316824,687.77,687.05,0.97049618]
[1752188991295,0.25316824,687.77,687.06,0.97049618]
[1752188991492,0.25316824,687.77,687.07,0.97049618]
[1752188991696,0.25316824,687.77,687.08,0.97049618]
[1752188991892,0.25316824,687.77,687.09,0.97049618]
[1752188992094,0.25316824,687.77,687.1,0.97049618]
[1752188992292,0.25316824,687.77,687.11,0.97049618]
[1752188992592,0.25316824,687.77,687.12,0.97049618]
[1752188992792,0.25316824,687.77,687.13,0.97049618]
[1752188992992,0.25316824,687.77,686.87,0.97876534]
[1752188992993,0.25316824,687.77,687.14,0.97049618]
[1752188993297,0.25316824,687.77,687.15,0.97049618]
[1752188993494,0.25316824,687.77,687.16,0.97049618]
[1752188993697,0.25316824,687.77,687.17,0.97049618]
[1752188993893,0.25316824,687.77,687.18,0.97049618]
[1752188994092,0.25316824,687.77,687.19,0.97049618]
[1752188994296,0.25316824,687.77,686.87,0.97876534]
[1752188994297,0.25316824,687.77,687.2,0.97049618]
[1752188994599,0.25316824,687.77,687.21,0.97049618]
[1752188994897,0.25316824,687.77,687.22,0.97049618]
[1752188995097,0.25316824,687.77,687.23,0.97049618]
[1752188995298,0.25316824,687.77,686.87,0.97876534]
[1752188995499,0.25316824,687.77,686.88,0.96987971]
[1752188995699,0.25316824,687.77,686.89,0.96987971]
[1752188995897,0.25316824,687.77,686.54,1.95309224]
[1752188995898,0.25316824,687.77,686.9,0.96987971]
[1752188996095,0.25316824,687.77,686.91,0.96987971]
[1752188996295,0.25316824,687.77,686.86,0.97876534]
[1752188996296,0.25316824,687.77,686.92,0.96987971]
[1752188996494,0.25316824,687.77,686.93,0.96987971]
[1752188996698,0.25316824,687.77,686.94,0.96987971]
[1752188996999,0.25316824,687.77,686.95,0.96987971]
[1752188997198,0.25316824,687.77,686.83,0.97876534]
[1752188997199,0.25316824,687.77,686.96,0.96987971]
[1752188997497,0.25316824,687.77,686.97,0.96987971]
[1752188997696,0.25316824,687.77,686.98,0.96987971]
[1752188997997,0.25316824,687.77,686.99,0.96987971]
[1752188998196,0.25316824,687.77,687.0,0.96987971]
[1752188998399,0.25316824,687.77,687.01,0.96987971]
[1752188998596,0.25316824,687.77,687.02,0.96987971]
[1752188998799,0.25316824,687.77,687.03,0.96987971]
[1752188998999,0.25316824,687.77,686.83,0.97876534]
[1752188999000,0.25316824,687.77,687.04,0.96987971]
[1752188999199,0.25316824,687.77,687.05,0.96987971]
[1752188999397,0.25316824,687.77,687.06,0.96987971]
[1752188999695,0.25316824,687.77,687.07,0.96987971]
[1752188999896,0.25316824,687.77,687.08,0.96987971]
[1752189000101,0.25316824,687.77,687.09,0.96987971]
[1752189000397,0.25316824,687.77,687.1,0.96987971]
[1752189000595,0.25316824,687.77,687.11,0.96987971]
[1752189000794,0.25316824,687.77,687.12,0.96987971]
[1752189000997,0.25316824,687.77,687.13,0.96987971]
[1752189001199,0.25316824,687.77,687.14,0.96987971]
[1752189001395,0.25316824,687.77,687.15,0.96987971]
[1752189001595,0.25316824,687.77,687.16,0.96987971]
[1752189001798,0.25316824,687.77,687.17,0.96987971]
[1752189002000,0.25316824,687.77,687.18,0.96987971]
[1752189002296,0.25316824,687.77,687.19,0.96987971]
[1752189002503,0.25316824,687.77,687.2,0.96987971]
[1752189002697,0.25316824,687.77,687.21,0.96987971]
[1752189002899,0.25316824,687.77,687.22,0.96987971]
[1752189003098,0.25316824,687.77,687.23,0.96987971]
[1752189003298,0.25316824,687.77,687.24,0.96987971]
[1752189003502,0.25316824,687.77,687.25,0.96987971]
[1752189003702,0.25316824,687.77,686.84,0.97876534]
[1752189004001,0.25316824,687.77,686.85,0.96923858]
[1752189004198,0.25316824,687.77,686.86,0.96923858]
[1752189004396,0.25316824,687.77,686.87,0.96923858]
[1752189004598,0.25316824,687.77,686.88,1.94800392]
[1752189004898,0.25316824,687.77,686.89,0.96923858]
[1752189005100,0.25316824,687.77,686.9,0.96923858]
[1752189005397,0.25316824,687.77,686.91,0.96923858]
[1752189005598,0.25316824,687.77,686.92,0.96923858]
[1752189005897,0.25316824,687.77,686.93,0.96923858]
[1752189006099,0.25316824,687.77,686.94,0.96923858]
[1752189006298,0.25316824,687.77,686.87,0.97876534]
[1752189006502,1.55770225,687.77,686.88,1.94773497]
[1752189006798,1.55770225,687.77,686.89,0.96896963]
[1752189006997,1.55770225,687.77,686.9,0.96896963]
[1752189007202,1.55770225,687.77,686.91,0.96896963]
[1752189007400,1.55770225,687.77,686.92,0.96896963]
[1752189007598,1.55770225,687.77,686.93,0.96896963]
[1752189007800,0.25316824,687.77,686.94,0.96896963]
[1752189007998,0.25316824,687.77,686.95,0.96896963]
[1752189008197,0.25316824,687.77,686.96,0.96896963]
[1752189008400,0.25316824,687.77,686.97,0.96896963]
[1752189008600,0.25316824,687.77,686.98,0.96896963]
[1752189008798,0.25316824,687.77,686.99,0.96896963]
[1752189009002,0.25316824,687.77,687.0,0.96896963]
[1752189009203,0.25316824,687.77,686.86,0.97876534]
[1752189009399,0.25316824,687.77,686.87,0.96886505]
[1752189009604,0.25316824,687.77,686.88,0.96886505]
[1752189009806,0.25316824,687.77,686.89,0.96886505]
[1752189010006,0.25316824,687.77,686.9,0.96886505]
[1752189010204,0.25316824,687.77,686.91,0.96886505]
[1752189010409,0.25316824,687.77,686.92,0.96886505]
[1752189010608,0.25316824,687.77,686.93,0.96886505]
[1752189010805,0.25316824,687.77,686.94,0.96886505]
[1752189011004,0.25316824,687.77,686.95,0.96886505]
[1752189011304,0.25316824,687.77,686.96,0.96886505]
[1752189011505,0.25316824,687.77,686.97,0.96886505]
[1752189011705,0.25316824,687.77,686.98,0.96886505]
[1752189011908,0.25316824,687.77,686.99,0.96886505]
[1752189012111,0.25316824,687.77,687.0,0.96886505]
[1752189012408,0.25316824,687.77,687.01,0.96886505]
[1752189012607,0.25316824,687.77,687.02,0.96886505]
[1752189012804,0.25316824,687.77,686.93,0.97876534]
[1752189012805,0.25316824,687.77,687.03,0.96886505]
[1752189013005,0.25316824,687.77,687.04,0.96886505]
[1752189013303,0.25316824,687.77,687.05,0.96886505]
[1752189013508,0.25316824,687.77,687.06,0.96886505]
[1752189013708,0.25316824,687.77,687.07,0.96886505]
[1752189014009,0.25316824,687.77,687.08,0.96886505]
[1752189014310,0.25316824,687.77,687.09,0.96886505]
[1752189014609,0.25316824,687.77,687.1,0.96886505]
[1752189014809,0.25316824,687.77,687.11,0.96886505]
[1752189015010,0.25316824,687.77,687.12,0.96886505]
[1752189015208,0.25316824,687.77,687.13,0.96886505]
[1752189015410,0.25316824,687.77,687.14,0.96886505]
[1752189015609,0.25316824,687.77,687.15,0.96886505]
[1752189015811,0.25316824,687.77,687.16,0.96886505]
[1752189016111,0.25316824,687.77,686.93,0.97876534]
[1752189016112,0.25316824,687.77,687.17,0.96886505]
[1752189016413,0.25316824,687.77,687.18,0.96886505]
[1752189016706,0.25316824,687.77,687.19,0.96886505]
[1752189016913,0.25316824,687.77,687.2,0.96886505]
[1752189017208,0.25316824,687.77,687.21,0.96886505]
[1752189017508,0.25316824,687.77,687.22,0.96886505]
[1752189017712,0.25316824,687.77,687.23,0.96886505]
[1752189018011,0.25316824,687.77,687.24,0.96886505]
[1752189018208,0.25316824,687.77,686.93,0.97876534]
[1752189018414,0.25316824,687.77,686.94,1.9481923]
[1752189018614,0.25316824,687.77,686.95,0.96942696]
[1752189018826,0.25316824,687.77,686.96,0.96942696]
[1752189019009,0.25316824,687.77,686.97,0.96942696]
[1752189019213,0.25316824,687.77,686.98,0.96942696]
[1752189019508,0.25316824,687.77,686.99,0.96942696]
[1752189019710,0.25316824,687.77,687.0,0.96942696]
[1752189019908,0.25316824,687.77,687.01,0.96942696]
[1752189020111,0.25316824,687.77,687.02,0.96942696]
[1752189020311,0.25316824,687.77,687.03,0.96942696]
[1752189020509,0.25316824,687.77,687.04,0.96942696]
[1752189020710,0.25316824,687.77,687.05,0.96942696]
[1752189020911,0.25316824,687.77,687.06,0.96942696]
[1752189021114,0.25316824,687.77,687.07,0.96942696]
[1752189021314,0.25316824,687.77,687.08,0.96942696]
[1752189021611,0.25316824,687.77,687.09,0.96942696]
[1752189021815,0.25316824,687.77,687.1,0.96942696]
[1752189022115,0.25316824,687.77,687.11,0.96942696]
[1752189022315,0.25316824,687.77,687.12,0.96942696]
[1752189022532,0.25316824,687.77,687.13,0.96942696]
[1752189022717,0.25316824,687.77,687.14,0.96942696]
[1752189022917,0.25316824,687.77,687.15,0.96942696]
[1752189023217,0.25316824,687.77,687.16,0.96942696]
[1752189023516,0.25316824,687.77,687.17,0.96942696]
[1752189023712,0.25316824,687.77,687.18,0.96942696]
[1752189023911,0.25316824,687.77,687.19,0.96942696]
[1752189024116,0.25316824,687.77,687.2,0.96942696]
[1752189024317,0.25316824,687.77,687.21,0.96942696]
[1752189024513,0.25316824,687.77,687.22,0.96942696]
[1752189024713,0.25316824,687.77,687.23,0.96942696]
[1752189024914,0.25316824,687.77,687.24,0.96942696]
[1752189025113,0.25316824,687.77,687.25,0.96942696]
[1752189025317,0.25316824,687.77,687.26,0.96942696]
[1752189025618,0.25316824,687.77,687.27,0.96942696]
[1752189025814,0.25316824,687.77,687.28,0.96942696]
[1752189026018,0.25316824,687.77,687.29,0.96942696]
[1752189026314,0.25316824,687.77,687.3,0.96942696]
[1752189026517,0.25316824,687.77,687.31,0.96942696]
[1752189026714,0.25316824,687.77,687.32,0.96942696]
[1752189026917,0.25316824,687.77,687.33,0.96942696]
[1752189027115,0.25316824,687.77,687.34,0.96942696]
[1752189027317,0.25316824,687.77,687.35,0.96942696]
[1752189027618,0.25316824,687.77,686.98,0.97876534]
[1752189027814,0.25316824,687.77,686.99,0.96989854]
[1752189028018,0.25316824,687.77,687.0,0.96989854]
[1752189028211,0.25316824,687.77,687.01,0.96989854]
[1752189028418,0.25316824,687.77,687.02,0.96989854]
[1752189028615,0.25316824,687.77,687.03,0.96989854]
[1752189028819,0.25316824,687.77,686.81,1.30206149]
[1752189028820,0.25316824,687.77,687.04,0.96989854]
[1752189029016,0.25316824,687.77,687.05,0.96989854]
[1752189029220,0.25316824,687.77,687.06,0.96989854]
[1752189029419,0.25316824,687.77,687.07,0.96989854]
[1752189029618,0.25316824,687.77,687.08,0.96989854]
[1752189029819,0.25316824,687.77,687.09,0.96989854]
[1752189030119,0.25316824,687.77,687.1,0.96989854]
[1752189030319,0.25316824,687.77,687.11,0.96989854]
[1752189030521,0.25316824,687.77,687.12,0.96989854]
[1752189030721,0.25316824,687.77,687.13,0.96989854]
[1752189030919,0.25316824,687.77,687.14,0.96989854]
[1752189031126,1.30453401,687.93,687.15,0.96989854]
[1752189031320,0.25303846,687.85,687.16,0.96989854]
[1752189031625,0.25303846,687.85,687.17,0.96989854]
[1752189031824,0.25303846,687.85,687.18,0.96989854]
[1752189032025,0.25303846,687.85,687.19,0.96989854]
[1752189032326,0.25303846,687.85,687.2,0.96989854]
[1752189032526,0.25303846,687.85,687.21,0.96989854]
[1752189032826,0.25303846,687.85,687.22,0.96989854]
[1752189033125,0.25303846,687.85,687.23,0.96989854]
[1752189033322,0.25303846,687.85,687.24,0.96989854]
[1752189033523,0.25303846,687.85,687.25,0.96989854]
[1752189033721,0.25303846,687.85,687.26,0.96989854]
[1752189034025,1.30453401,687.95,687.27,0.96989854]
[1752189034324,0.25300995,687.93,687.28,0.96989854]
[1752189034522,0.25300995,687.93,687.29,0.96989854]
[1752189034725,0.25300995,687.93,687.3,0.96989854]
[1752189034926,0.25300995,687.93,687.31,0.96989854]
[1752189035123,0.25300995,687.93,687.32,0.96989854]
[1752189035426,0.25300995,687.93,687.33,0.96989854]
[1752189035726,0.25300995,687.93,687.34,0.96989854]
[1752189035923,0.25300995,687.93,687.35,0.96989854]
[1752189036127,0.25300995,687.93,687.36,0.96989854]
[1752189036324,0.25300995,687.93,687.37,0.96989854]
[1752189036523,0.25300995,687.93,687.38,0.96989854]
[1752189036825,0.25300995,687.93,687.39,0.96989854]
[1752189037124,0.25300995,687.93,687.4,0.96989854]
[1752189037326,0.25300995,687.93,687.41,0.96989854]
[1752189037527,0.25300995,687.93,687.42,0.96989854]
[1752189037830,0.25300995,687.93,687.14,1.298]
[1752189038025,0.25300995,687.93,687.15,0.97018021]
[1752189038226,0.25300995,687.93,687.16,0.97018021]
[1752189038426,0.25300995,687.93,687.17,0.97018021]
[1752189038631,0.25300995,687.93,687.18,0.97018021]
[1752189038927,0.25300995,687.93,687.19,0.97018021]
[1752189039126,0.25300995,687.93,687.2,0.97018021]
[1752189039328,0.25300995,687.93,687.21,0.97018021]
[1752189039527,0.25300995,687.93,687.22,0.97018021]
[1752189039730,0.25300995,687.93,687.23,0.97018021]
[1752189040030,0.25300995,687.93,687.24,0.97018021]
[1752189040230,0.25300995,687.93,687.25,0.97018021]
[1752189040430,0.25300995,687.93,687.26,0.97018021]
[1752189040726,0.25300995,687.93,687.27,0.97018021]
[1752189040926,0.25300995,687.93,687.28,0.97018021]
[1752189041131,0.25300995,687.93,687.14,1.298]
[1752189041132,0.25300995,687.93,687.29,0.97018021]
[1752189041326,0.25300995,687.93,687.3,0.97018021]
[1752189041526,0.25300995,687.93,687.31,0.97018021]
[1752189041729,0.25300995,687.93,687.32,0.97018021]
[1752189041926,0.25300995,687.93,687.33,0.97018021]
[1752189042127,0.25300995,687.93,687.34,0.97018021]
[1752189042330,0.25300995,687.93,687.35,0.96986096]
[1752189042634,0.25300995,687.93,687.36,0.96986096]
[1752189042833,0.25300995,687.93,687.37,0.96986096]
[1752189043030,0.25300995,687.93,687.38,0.96986096]
[1752189043237,0.25300995,687.93,687.39,0.96986096]
[1752189043433,0.25300995,687.93,687.4,0.96986096]
[1752189043630,0.25300995,687.93,687.41,0.96986096]
[1752189043829,0.25300995,687.93,687.42,0.96986096]
[1752189044134,0.25300995,687.93,687.43,0.96986096]
[1752189044430,0.25300995,687.93,687.44,0.96986096]
[1752189044634,0.25300995,687.93,687.45,0.96986096]
[1752189044835,0.25300995,687.93,687.14,1.298]
[1752189045036,0.25300995,687.93,687.15,0.96942628]
[1752189045336,0.25300995,687.93,687.16,0.96942628]
[1752189045536,0.25300995,687.93,687.17,0.96942628]
[1752189045734,0.25300995,687.93,687.14,1.298]
[1752189045735,1.30453401,687.92,687.18,0.96942628]
[1752189045933,1.30453401,687.91,687.19,0.96942628]
[1752189046138,1.30453401,687.91,687.2,0.96942628]
[1752189046340,1.30453401,687.91,687.21,0.96942628]